[Event "Portuguese Rapid-ch 2022"]
[Site "Viseu"]
[Date "2022.06.10"]
[Round "5.6"]
[White "Martins, Bruno Andre Leite"]
[Black "Ribeiro, Fernando"]
[Result "1-0"]
[ECO "A45"]
[WhiteElo "2327"]
[BlackElo "2116"]
[Annotator "TA"]
[PlyCount "51"]
[EventDate "2022.06.09"]
[EventType "rapid"]
[EventCountry "POR"]
[SourceTitle "playchess.com"]
[Source "ChessBase"]
[SourceQuality "1"]
[TimeControl "600+5"]

{[%evp 9,51,49,47,34,70,68,113,97,108,97,85,79,81,91,109,113,100,78,235,264,250,253,381,387,705,666,701,635,795,760,1125,1088,1062,1035,1037,660,29989,29990,29990,29990,29990,29976,5414,5002]} 1. d4 {[%emt 0:00:02]} Nf6 {[%emt 0:00:01]} 2. Bf4 {[%emt 0:00:02]} g6 {[%emt 0:00:05]} 3. Nc3 {[%emt 0:00:02]} Bg7 {[%emt 0:00:09]} 4. e4 {[%emt 0:00:02]} d6 {[%emt 0:00:00]} 5. Qd2 {[%emt 0:00:02]} O-O {[%emt 0:00:09]} 6. f3 {[%emt 0:00:04] B07: Pirc Defence: Miscellaneous Systems.} Nc6 {[%emt 0:00:06][%cal Oc6d4]} 7. O-O-O {[%emt 0:00:11]} Nh5 {[%emt 0:01:04]} 8. Be3 {[%emt 0:01:48] White is better.} (8. Bh6 {looks sharper.} Bxd4 9. Bxf8 Qxf8 10. Kb1) 8... e5 {[%emt 0:00:01]} 9. Nge2 {[%emt 0:01:23]} exd4 {[%emt 0:02:00]} 10. Nxd4 {[%emt 0:00:03]} Nxd4 {[%emt 0:00:20]} 11. Bxd4 {[%emt 0:00:02] [#]} Be6 $146 {[%emt 0:00:09]} ({Predecessor:} 11... Bxd4 12. Qxd4 Be6 13. h4 Qf6 14. Qd2 Qf4 15. Kb1 Qxd2 16. Rxd2 Ng3 17. Rg1 f5 {0-1 (36) Pena Canon,J-Bermudez,E (1699) Manizales 2022}) 12. Bxg7 {[%emt 0:01:41]} Nxg7 {[%emt 0:00:02]} 13. g4 {[%emt 0:01:37]} h5 $2 {[%emt 0:00:07] [#] This costs Black the game.} (13... Qh4 $16) 14. h3 $1 $18 {[%emt 0:01:32]} Qh4 {[%emt 0:01:19][%cal Rh5g4]} 15. Bd3 {[%emt 0:00:03]} Rfd8 {[%emt 0:00:22]} (15... Rae8 {might work better.} 16. Qh6 Bd7) 16. f4 {[%emt 0:00:50]} f5 $2 {[%emt 0:00:26]} (16... d5 17. f5 dxe4) 17. gxf5 {[%emt 0:00:20]} gxf5 {[%emt 0:00:01]} 18. exf5 {[%emt 0:00:08]} Bf7 {[%emt 0:00:38]} 19. Rdg1 {[%emt 0:00:08]} Kh8 {[%emt 0:00:19]} 20. Rg5 {[%emt 0:00:26]} Rg8 {[%emt 0:00:17]} 21. Rhg1 {[%emt 0:00:16]} Rae8 {[%emt 0:00:08]} 22. Be4 {[%emt 0:00:26]} c6 {[%emt 0:00:58]} 23. Qxd6 {[%emt 0:00:10][%cal Rd6h6]} Kh7 {[%emt 0:00:20]} 24. f6+ {[%emt 0:00:16]} Rxe4 {[%emt 0:00:01]} 25. Rxg7+ {[%emt 0:00:15]} Rxg7 {[%emt 0:00:05]} 26. Rxg7+ {[%emt 0:00:02] Weighted Error Value: White=0.29 (precise) /Black=0.78} ({Not} 26. fxg7 Qxf4+ 27. Qxf4 Rxf4 $11) 1-0

[Event "Portuguese Rapid-ch 2022"]
[Site "Viseu"]
[Date "2022.06.10"]
[Round "5.7"]
[White "Silva, Miguel Antonio Neto"]
[Black "Pipiras, Filipa Fortuna"]
[Result "1-0"]
[ECO "E06"]
[WhiteElo "2215"]
[BlackElo "2135"]
[Annotator "TA"]
[PlyCount "89"]
[EventDate "2022.06.09"]
[EventType "rapid"]
[EventCountry "POR"]
[SourceTitle "playchess.com"]
[Source "ChessBase"]
[SourceQuality "1"]
[TimeControl "600+5"]

{[%evp 18,89,0,0,30,0,14,29,61,73,82,77,77,47,99,89,152,-6,-5,-7,12,0,0,-108,0,0,60,60,92,100,106,99,99,102,116,117,120,105,273,268,271,142,152,139,984,900,765,193,385,397,388,385,393,379,434,409,353,284,421,337,355,8,8,8,1755,1947,1950,1855,29976,29977,29975,29976,29973,5418]} 1. d4 {[%emt 0:00:06]} d5 {[%emt 0:00:02]} 2. Nf3 {[%emt 0:00:03]} Nf6 {[%emt 0:00:03]} 3. c4 {[%emt 0:00:09]} e6 {[%emt 0:00:05]} 4. g3 {[%emt 0:00:02]} Be7 {[%emt 0:00:03]} 5. Bg2 {[%emt 0:00:01]} O-O {[%emt 0:00:02]} 6. O-O {[%emt 0:00:03]} dxc4 {[%emt 0:00:02]} 7. Qc2 {[%emt 0:00:02]} a6 {[%emt 0:00:04]} 8. Qxc4 {[%emt 0:00:03]} b5 {[%emt 0:00:01]} 9. Qc2 {[%emt 0:00:01]} Bb7 {[%emt 0:00:01]} 10. Bd2 {[%emt 0:00:02]} Bd6 {[%emt 0:00:50] E05: Open Catalan: 5 Nf3 Be7.} 11. Rc1 {[%emt 0:00:13]} Be4 {[%emt 0:01:02]} (11... Nbd7 $5 {[%cal Rc7c5]}) 12. Qd1 {[%emt 0:00:05]} Qe7 {[%emt 0:00:06] White has an edge.} 13. Bg5 {[%emt 0:00:45]} Nbd7 {[%emt 0:02:01]} 14. Nbd2 {[%emt 0:00:05]} Bb7 {[%emt 0:00:01] [#]} 15. Nb3 $146 {[%emt 0:00:13]} (15. e4 $5 {[%cal Re4e5]} e5 16. Nh4 $14) ({Predecessor:} 15. e4 e5 16. Nh4 Qe6 17. Nf5 exd4 18. Bh3 Qe8 19. Nxd6 cxd6 20. Rc7 Rb8 21. Rac1 {½-½ (81) Stupak,K (2451)-Azarova,N (2296) Minsk 2008}) 15... h6 {[%emt 0:00:34]} (15... c5 $14) 16. Bxf6 $16 {[%emt 0:00:08]} Qxf6 {[%emt 0:00:18] [#]} (16... Nxf6 $142 17. Na5 Bd5) 17. Nc5 $2 {[%emt 0:00:47]} (17. Ne5 $1 $16 {[%cal Re5d7]} Nxe5 18. Bxb7 (18. dxe5 Bxe5 19. Bxb7 Rad8 $16)) 17... Bxc5 $11 {[%emt 0:01:07]} 18. dxc5 {[%emt 0:00:03]} Bd5 {[%emt 0:01:04]} 19. Qc2 {[%emt 0:00:28]} Rfd8 {[%emt 0:00:25]} 20. b4 {[%emt 0:00:26] [#]} (20. Rd1 $11) 20... Ne5 {[%emt 0:00:21]} (20... a5 $1 $17 21. e4 Bc6) 21. Nxe5 {[%emt 0:01:09]} Bxg2 {[%emt 0:01:04]} (21... Qxe5 $11 22. a4 Bxg2 23. Kxg2 bxa4) 22. Nxf7 $14 {[%emt 0:01:35]} Qxf7 {[%emt 0:00:47]} 23. Kxg2 {[%emt 0:00:02]} Rd4 {[%emt 0:00:01]} 24. a3 {[%emt 0:00:06]} Rad8 {[%emt 0:00:07]} 25. Rd1 {[%emt 0:00:11]} Qd7 {[%emt 0:00:01][%cal Rd4d1]} 26. Rxd4 {[%emt 0:00:21]} Qxd4 $16 {[%emt 0:00:07][%mdl 4096] Endgame KQR-KQR} 27. Rc1 {[%emt 0:00:35]} a5 $2 {[%emt 0:00:44]} (27... Kf7 $16 28. h4 c6) 28. bxa5 $18 {[%emt 0:00:20]} Ra8 {[%emt 0:00:36]} 29. Qg6 {[%emt 0:00:30]} ({White should try} 29. Rd1 $18 Qa4 30. Qb1) 29... Qd5+ $16 {[%emt 0:00:17]} 30. e4 {[%emt 0:00:05]} Qa2 {[%emt 0:00:03][%mdl 8192]} (30... Qd7 $16 31. Rc3 (31. c6 Qf7 $16) 31... Rxa5) 31. Rd1 $18 {[%emt 0:00:49] Hoping for Rd7.} Rf8 {[%emt 0:00:01]} 32. Rf1 $2 {[%emt 0:00:02]} (32. Kh3) 32... Qxa3 $2 {[%emt 0:00:23]} (32... Kh8 33. a6 Qxa3) 33. Qxe6+ {[%emt 0:00:04]} Kh7 {[%emt 0:00:01]} 34. Qe7 {[%emt 0:00:24][%csl LRc7,LRf8]} Qf3+ {[%emt 0:00:02]} 35. Kg1 {[%emt 0:00:01]} Rf7 {[%emt 0:00:04]} 36. Qe5 {[%emt 0:00:09] Black must now prevent c6.} c6 {[%emt 0:00:08]} 37. a6 {[%emt 0:00:25]} b4 {[%emt 0:00:07]} (37... Ra7 $142 38. Ra1 b4) 38. Qe6 {[%emt 0:00:31]} b3 {[%emt 0:00:05]} 39. Qxc6 $2 {[%emt 0:00:33]} (39. Qc4 $18) 39... b2 $11 {[%emt 0:00:11]} 40. Qb5 {[%emt 0:00:14]} Qxe4 $2 {[%emt 0:00:03][%mdl 8192]} (40... h5 $11 41. h4 (41. Qxb2 h4 $11) 41... g5) 41. Qxb2 $18 {[%emt 0:00:03]} Qc4 {[%emt 0:00:01]} 42. Qb1+ {[%emt 0:00:10]} Kg8 {[%emt 0:00:07]} 43. Qb8+ {[%emt 0:00:02] White mates.} Rf8 {[%emt 0:00:04]} 44. a7 {[%emt 0:00:04]} Qxc5 {[%emt 0:00:09]} 45. a8=Q {[%emt 0:00:08] Weighted Error Value: White=0.58/Black=0.51} 1-0

[Event "Portuguese Rapid-ch 2022"]
[Site "Viseu"]
[Date "2022.06.11"]
[Round "6.1"]
[White "Fernandes, Antonio"]
[Black "Veiga, Jose Francisco R P N"]
[Result "0-1"]
[ECO "A05"]
[WhiteElo "2314"]
[BlackElo "2377"]
[Annotator "TA"]
[PlyCount "63"]
[EventDate "2022.06.09"]
[EventType "rapid"]
[EventCountry "POR"]
[SourceTitle "playchess.com"]
[Source "ChessBase"]
[SourceQuality "1"]
[TimeControl "600+5"]

{[%evp 23,63,25,20,27,31,28,34,27,31,0,12,0,0,5,47,46,70,78,68,64,63,67,97,65,89,43,46,19,125,131,122,108,185,108,109,109,149,103,206,172,281,225]} 1. Nf3 Nf6 2. g3 g6 3. Bg2 Bg7 4. O-O O-O 5. d4 c5 6. c4 cxd4 7. Nxd4 Nc6 8. Nc3 Nxd4 9. Qxd4 d6 10. Qd2 a6 11. b3 Rb8 12. Bb2 Qa5 13. Rfd1 {Black must now prevent Nd5. A39: Symmetrical English vs ...g6: 4 Bg2 Bg7 5 Nf3 Nf6 6 0-0 0-0 7 d4.} Qh5 14. Nd5 Nxd5 15. Bxg7 {White is slightly better.} Kxg7 {[#]} 16. Qxd5 $146 ({Predecessor:} 16. cxd5 Bg4 17. Qd4+ Kg8 18. f3 Bd7 19. Rac1 Rbc8 20. e4 Qe5 21. Qxe5 dxe5 22. f4 {½-½ (30) Kokoszczynski,J (2246)-Marszalek,M (2272) Jastrzebia Gora 2018}) 16... Qxe2 17. Qd4+ Qe5 $1 18. Qa7 $36 {[%mdl 2048] White is more active.} Bg4 (18... Be6 $5 {[%cal Re5c5]}) 19. Re1 Qc5 20. Qxc5 dxc5 21. Rxe7 b5 22. Bd5 Rb6 23. Rae1 {Inhibits Be6.} Rf6 24. Rb7 ({Better is} 24. f4 $16) 24... bxc4 $1 $14 25. bxc4 (25. Bxc4 $5 {[%cal Re1e7]} Rd8 26. f4 $14) 25... Bc8 (25... Bf3 $1 $11 {keeps the balance.}) 26. Rc7 $16 Bh3 27. Ree7 Rb8 {[#]} (27... Rb6 $16 28. Rxf7+ Rxf7 29. Rxf7+ Kh8) 28. Rxf7+ ({White should play} 28. f3 $1 $18) 28... Rxf7 29. Rxf7+ Kh6 {[%cal Rb8b1]} 30. Rb7 {Against Rb1+} (30. f4 $142) 30... Re8 (30... Rxb7 $16 31. Bxb7 a5) 31. f4 g5 (31... Be6 $142 32. Rb6 Bxd5 33. cxd5 Re2 34. Rxa6 c4) 32. Kf2 {[%mdl 32768] Weighted Error Value: White=0.20 (precise) /Black=0.34. Sensor Board Error (Ke4/e5)?} 0-1

[Event "Portuguese Rapid-ch 2022"]
[Site "Viseu"]
[Date "2022.06.11"]
[Round "6.2"]
[White "Rego, Pedro Filipe"]
[Black "Sousa, Andre Ventura"]
[Result "0-1"]
[ECO "A40"]
[WhiteElo "2251"]
[BlackElo "2420"]
[Annotator "TA"]
[PlyCount "106"]
[EventDate "2022.06.09"]
[EventType "rapid"]
[EventCountry "POR"]
[SourceTitle "playchess.com"]
[Source "ChessBase"]
[SourceQuality "1"]
[TimeControl "600+5"]

{[%evp 14,106,20,22,36,29,27,14,19,12,8,-11,7,0,-11,-10,-11,-12,63,-26,-11,-11,-8,-43,-21,-43,-33,-41,-35,-50,0,-10,0,0,0,0,0,0,0,-15,6,4,8,0,0,0,0,0,38,31,55,49,50,0,0,0,0,0,4,0,3,0,90,0,13,-9,-18,-25,-26,-43,-34,-78,-41,-52,0,0,31,23,122,115,100,-24,0,-362,-363,-616,-612,-537,-571,-782,-767,-876,-875,-1242,-828]} 1. d4 Nf6 2. c4 e6 3. g3 Bb4+ 4. Bd2 Qe7 5. Nf3 Nc6 6. Bg2 Bxd2+ 7. Nbxd2 d6 8. O-O e5 {E11: Bogo-Indian.} 9. d5 Nb8 10. Qc2 a5 {The position is equal.} 11. b3 O-O 12. a3 Na6 13. Ne1 {[#]} Bg4 $146 ({Predecessor:} 13... Nc5 14. Rb1 Bd7 15. b4 axb4 16. axb4 Na4 17. Nb3 Rfc8 18. Na5 b5 19. cxb5 Bxb5 20. Nc6 Qd7 21. Ra1 Nb6 22. Rxa8 Rxa8 23. Nd3 Nfxd5 24. Qb2 Rb8 25. Qa2 {1-0 (25) Bakos,B (2225)-Suto,G (2276) Fuzesabony 2004}) 14. f3 Bd7 15. Nd3 c5 (15... Rfc8 $11) 16. dxc6 (16. e4 $14) 16... Bxc6 $11 17. e4 b5 18. Qc3 Rfb8 19. Rfc1 ({Not} 19. Qxa5 $2 b4 20. axb4 Nc7 21. Nxe5 dxe5 $19) 19... b4 20. axb4 axb4 21. Qc2 Qa7+ (21... Nd7 $15) 22. Kh1 Qd4 23. Rd1 Nc5 24. Rxa8 Bxa8 25. Nxc5 Qxc5 26. Nf1 Bc6 27. Qd2 Ne8 28. Ra1 Nc7 29. Bh3 g6 30. Rd1 Rd8 31. Ne3 h5 32. Nc2 Na6 33. Bg2 (33. Kg2 $14) 33... Kg7 34. h4 Qb6 35. Kh2 Rd7 36. Bh3 Rd8 37. Bg2 f6 (37... Rd7 $11 {remains equal.}) 38. Qe1 (38. f4 $1 $16 {[%cal Rf4e5] Hoping for fxe5.} Nc5 39. fxe5 fxe5 40. Qg5) 38... Bd7 {[%cal Bc6d7,Bd7e6,Be6f7][%mdl 32]} 39. Rd3 Nc5 40. Re3 Rb8 41. Qd2 Be6 42. Bh3 Bf7 {Black is more active.} (42... Bxc4 {feels hotter.} 43. bxc4 b3 44. Re1 bxc2 45. Qxc2 Qb3) 43. Bg2 Kf8 (43... Qa6 $15) 44. f4 Ke7 45. f5 Qa5 {[#]} (45... Ke8 $11) 46. fxg6 $1 $16 Bxg6 {[#]} 47. Ne1 ({White should play} 47. Re1 $1 $16) 47... Qa1 $11 48. Nd3 $2 {[%mdl 8192]} (48. Nc2 $11 {and White is okay.} Qb2 49. Qf2) 48... Nxb3 $19 49. Qe1 (49. Qe2 Nd4 50. Qd2) 49... Qxe1 {Black is clearly winning.} 50. Rxe1 Nc5 51. Nb2 Ra8 52. Rb1 Ra2 53. Nd1 Bxe4 {Weighted Error Value: White=0.50/Black=0.19 (very precise)} 0-1

[Event "Portuguese Rapid-ch 2022"]
[Site "Viseu"]
[Date "2022.06.11"]
[Round "6.3"]
[White "Silva, Miguel Antonio Neto"]
[Black "Santos, Jose Guilherme B Lim"]
[Result "1/2-1/2"]
[ECO "A61"]
[WhiteElo "2215"]
[BlackElo "2365"]
[Annotator "TA"]
[PlyCount "63"]
[EventDate "2022.06.09"]
[EventType "rapid"]
[EventCountry "POR"]
[SourceTitle "playchess.com"]
[Source "ChessBase"]
[SourceQuality "1"]
[TimeControl "600+5"]

{[%evp 19,63,31,33,0,35,25,59,62,57,-23,20,22,68,67,72,66,72,57,68,68,60,79,183,50,61,9,22,21,67,12,74,0,0,0,0,-40,-33,-54,0,0,18,12,28,20,88,65]} 1. d4 {[%emt 0:00:04]} Nf6 {[%emt 0:00:04]} 2. Nf3 {[%emt 0:00:02]} e6 {[%emt 0:00:02]} 3. c4 {[%emt 0:00:05]} c5 {[%emt 0:00:05]} 4. d5 {[%emt 0:00:07]} d6 {[%emt 0:00:03]} 5. Nc3 {[%emt 0:00:07]} exd5 {[%emt 0:00:02]} 6. cxd5 {[%emt 0:00:03]} g6 {[%emt 0:00:01]} 7. Nd2 {[%emt 0:00:25]} Bg7 {[%emt 0:00:15]} 8. e4 {[%emt 0:00:04]} O-O {[%emt 0:00:02]} 9. Be2 {[%emt 0:00:02]} Na6 {[%emt 0:00:06]} 10. O-O {[%emt 0:00:06]} Nc7 {[%emt 0:00:01]} 11. f3 {[%emt 0:00:07] A73: Modern Benoni: Classical: Unusual Black 9th moves.} Rb8 {[%emt 0:00:12]} 12. a4 {[%emt 0:00:02]} b6 {[%emt 0:00:01]} 13. Nc4 {[%emt 0:00:07] White is slightly better.} Ba6 {[%emt 0:00:03]} 14. Bf4 {[%emt 0:00:16]} (14. Bg5 $14) 14... Bxc4 {[%emt 0:00:02]} (14... Nh5 $5 {[%cal Rh5f4]} 15. Be3 (15. Bxd6 Bxc4 16. Bxf8 Bxe2 $15) 15... f5 $11) 15. Bxc4 {[%emt 0:00:03]} Re8 {[%emt 0:00:10]} (15... Nh5 $11 {was preferrable.} 16. Be3 f5) 16. Nb5 $14 {[%emt 0:00:25] White is more active.} Nxb5 {[%emt 0:00:40]} 17. Bxb5 {[%emt 0:00:23] [#] A strong pair of Bishops.} Nh5 $146 {[%emt 0:00:04]} ({Predecessor:} 17... Rf8 18. Qd2 Qe7 19. Bg5 Qb7 20. Rfe1 a6 21. Bc6 Qc7 22. Qe2 h6 23. Be3 Nd7 24. Bxd7 Qxd7 25. Qxa6 Bxb2 {1-0 (51) Stepan,P (2157)-Mrva,M (2223) Czech Republic 2017}) 18. Be3 {[%emt 0:00:19] Inhibits Bd4.} (18. Bxe8 {is more complex.} Nxf4 19. Bb5 Bxb2 20. Ra2) 18... Rf8 {[%emt 0:01:41]} 19. Qd2 {[%emt 0:00:26]} f5 {[%emt 0:00:09]} 20. exf5 {[%emt 0:00:41]} Rxf5 {[%emt 0:00:03]} (20... gxf5 $16 21. Bg5 Bd4+ 22. Rf2 Qc7) 21. Rad1 {[%emt 0:01:40]} (21. g4 $18 Re5 22. Rae1 (22. gxh5 Rxe3 23. hxg6 hxg6 $15)) 21... Rf7 {[%emt 0:03:04]} 22. Rfe1 {[%emt 0:00:42]} (22. g4 $14 Nf6 23. Bg5) 22... Qf8 {[%emt 0:00:37]} 23. b3 {[%emt 0:00:42]} Nf4 {[%emt 0:00:19]} (23... Be5 $11) 24. Bf1 {[%emt 0:00:50]} (24. g3 $14 Nh5 25. Rf1) 24... Re8 {[%emt 0:00:44]} (24... g5 $11 {keeps the balance.}) 25. Bxf4 {[%emt 0:00:56]} (25. g3 $16 {[%cal Re3f4]} Nh5 26. f4) 25... Rxe1 $11 {[%emt 0:00:01]} 26. Rxe1 {[%emt 0:00:20]} Rxf4 {[%emt 0:00:03]} 27. Re6 {[%emt 0:01:06]} Be5 {[%emt 0:00:24]} 28. Qe1 {[%emt 0:01:00]} Rf6 {[%emt 0:00:22]} (28... Qh6 $15) 29. Qh4 {[%emt 0:00:34]} Rxe6 {[%emt 0:01:40]} 30. dxe6 {[%emt 0:00:02] [#] Hoping for e7.} Qf6 {[%emt 0:00:22]} 31. Qe4 {[%emt 0:00:23]} Qe7 {[%emt 0:00:13]} (31... Qg5 $11) 32. g3 {[%emt 0:00:04] Weighted Error Value: White=0.35/Black=0.29 (precise)} 1/2-1/2

[Event "Portuguese Rapid-ch 2022"]
[Site "Viseu"]
[Date "2022.06.11"]
[Round "6.4"]
[White "Sismeiro, Miguel"]
[Black "Martins, Bruno Andre Leite"]
[Result "0-1"]
[ECO "D02"]
[WhiteElo "2148"]
[BlackElo "2327"]
[Annotator "TA"]
[PlyCount "56"]
[EventDate "2022.06.09"]
[EventType "rapid"]
[EventCountry "POR"]
[SourceTitle "playchess.com"]
[Source "ChessBase"]
[SourceQuality "1"]
[TimeControl "600+5"]

{[%evp 9,56,0,10,0,2,0,0,0,0,0,24,33,34,0,43,42,44,34,57,46,45,37,44,-7,-7,-3,-8,-83,-66,-91,-101,-214,-209,-209,-209,-203,-201,-481,-479,-462,-476,-542,-545,-695,-698,-729,-719,-887,-867]} 1. d4 Nf6 2. Nf3 d5 3. Bf4 c5 4. e3 e6 5. Nbd2 Nc6 6. Bb5 {D02: 1 d4 d5 2 Nf3 sidelines, including 2...Nf6 3 g3 and 2...Nf6 3 Bf4.} Bd6 7. dxc5 Bxc5 8. O-O {The position is equal.} O-O 9. c4 a6 10. Bxc6 bxc6 {[#]} 11. Ne5 $146 ({Predecessor:} 11. Rc1 Bd6 12. Ne5 Bb7 13. h3 Qe7 14. Nb3 a5 15. c5 Bc7 16. Nd4 Ra6 17. Qa4 Bxe5 18. Bxe5 {1-0 (49) Le,Q (2709)-Krysa,L (2531) Chess.com INT 2020}) 11... Qb6 12. Nb3 Nd7 13. Rc1 Nxe5 14. Bxe5 {cxd5 is the strong threat.} Be7 15. cxd5 ({Of course not} 15. Qg4 f6 16. c5 Qd8 $11) 15... cxd5 16. Qd4 (16. Rc7 $14 Bd6 17. Bxd6 Qxd6 18. Qc2) 16... Qxd4 $11 17. Nxd4 Re8 18. Rc7 (18. Rc6 $11) 18... f6 $17 19. Nc6 {[#]} Bf8 {[%cal Be7f8,Bf8d6,Bd6b8][%mdl 32]} 20. Bc3 (20. Bg3 $17) 20... Bd6 $19 21. Ra7 Rxa7 22. Nxa7 Bd7 {Hoping for ...Ra8.} 23. b4 $2 (23. Rc1) 23... Ra8 {Black is clearly winning.} 24. Bd4 Bb8 25. b5 axb5 ({And not} 25... Bxa7 26. b6 e5 27. Bc5 Bxb6 28. Bxb6 $17) ({Less strong is} 25... Rxa7 26. Bxa7 Bxa7 27. Rc1 Bxe3 28. fxe3 Bxb5 29. Rc7 $14) 26. Rc1 Bxa7 27. Rc7 Bxd4 28. Rxd7 {[#]} Rxa2 $1 {Weighted Error Value: White=0.50/Black=0.04 (flawless)} 0-1

[Event "Portuguese Rapid-ch 2022"]
[Site "Viseu"]
[Date "2022.06.11"]
[Round "6.5"]
[White "Padeiro, Jose"]
[Black "Silva, Goncalo Nuno Neto Pi"]
[Result "1/2-1/2"]
[ECO "A04"]
[WhiteElo "2207"]
[BlackElo "2169"]
[Annotator "TA"]
[PlyCount "115"]
[EventDate "2022.06.09"]
[EventType "rapid"]
[EventCountry "POR"]
[SourceTitle "playchess.com"]
[Source "ChessBase"]
[SourceQuality "1"]
[TimeControl "600+5"]

{[%evp 14,115,57,51,61,56,64,68,66,50,85,23,24,22,24,24,70,73,92,93,245,95,93,76,64,73,54,0,6,0,0,0,0,0,0,0,31,0,0,0,0,0,0,0,0,-49,-31,-41,0,0,0,0,0,-16,0,0,0,0,0,0,0,0,0,-70,-56,-90,-91,-91,-71,-65,-50,-68,-29,-33,-34,-47,-124,-85,0,0,0,0,24,-14,0,0,0,0,0,0,0,0,0,0,0,0,0,0,0,0,12846,12847,12847,0]} 1. Nf3 g6 2. d4 Bg7 3. c4 c5 4. d5 d6 5. e4 Nf6 6. Nc3 O-O 7. h3 a6 8. a4 Re8 {E90: King's Indian: Classical: Early deviations and 6 h3.} 9. Bd3 e6 10. O-O Nbd7 {White is slightly better.} 11. dxe6 fxe6 {[#]} 12. e5 $146 (12. Be2 $16) ({Predecessor:} 12. Bc2 Nb8 13. Bg5 Qc7 14. Bf4 e5 15. Bg5 Be6 16. Bxf6 Bxf6 17. Nd5 Bxd5 18. Qxd5+ {1-0 (66) Nardemir,I (1535)-Isik,M (1334) Antalya 2019}) 12... Nxe5 $11 13. Nxe5 dxe5 14. Ne4 Nxe4 (14... Qc7 $11) 15. Bxe4 $14 Qc7 {[#]} 16. h4 $1 {Hoping for h5.} Qf7 $2 (16... Bd7 $16) 17. Be3 (17. h5 $18 {is more deadly.}) 17... Bd7 $16 18. Bxc5 Rac8 19. Be3 {White is more active.} Rxc4 20. f3 (20. Bxb7 $14 a5 21. Ba6) 20... b5 {[%cal Rb5a4]} 21. axb5 Bxb5 22. Rf2 Bf6 23. g3 Be7 24. Rd2 Bc6 25. Bxc6 Rxc6 26. Kg2 Qf5 27. Qa4 Rec8 28. Rad1 Rc2 29. Qe4 (29. Rf2 $11) 29... Qxe4 30. fxe4 Bb4 31. Rxc2 Rxc2+ $11 {[%mdl 4096] Endgame KRB-KRB} 32. Kf3 Rxb2 33. Bh6 Kf7 34. Rd7+ Ke8 35. Rxh7 Be1 36. Be3 Rb3 37. Ke2 {Against Bd2} Bxg3 38. Bc5 ({Better is} 38. Bg5 $1 $11) 38... Rb5 39. Be3 {[#]} Bf4 $1 {aiming for ...Rb2+.} 40. Bf2 Rb2+ 41. Kf3 a5 {And now ...a4 would win.} 42. Ra7 Ra2 43. Bc5 {Prevents Ra3+.} a4 44. Re7+ Kd8 $1 {...Rc2 is the strong threat.} 45. Rxe6 Rh2 (45... Rc2 $17 46. Bd4 Kd7) 46. Rxg6 a3 47. Ra6 a2 48. Kg4 Kc7 49. Kf5 Kb7 50. Ra4 Kc6 51. Be7 Kb5 52. Ra8 Kc4 53. Bg5 Bg3 54. Bf6 Rf2+ 55. Ke6 Rf4 56. Rxa2 {Black must now prevent h5.} Rxe4 $2 {[%mdl 8192]} (56... Bxh4 $11 57. Bxh4 (57. Bxe5 Rxe4 58. Kf5 Rxe5+ 59. Kxe5 Bg5 $11) (57. Kxe5 Rxf6 58. Rc2+ Kd3 $11) 57... Rxe4) 57. Ra4+ $18 Kd3 58. Rxe4 $2 {Weighted Error Value: White=0.13 (very precise) /Black=0.13 (very precise)} (58. Ra3+ $18 Ke2 59. Rxg3) 1/2-1/2